Cogmind - Beta 16 @@@ ROGUE MODE // 2025.11.05 @ 14:43:31 Player: carrera Result: Destroyed by DAS Turret with DAS Cannon Performance ------------- Evolutions (1) 500 Regions Visited (4) 800 Robots Destroyed (82) 410 Value Destroyed (1675) 1675 Prototype IDs (5) 100 Alien Tech Used (0) 0 Bonus (-72) -72 TOTAL SCORE: 3413 Bonus ------- Follower Combat Kills 33 Friendly Fire -105 Cogmind --------- Core Integrity 0/400 Matter 89/300 Energy 100/100 System Corruption 2% Temperature Cool (0) Movement Walking (200) Ox1 Location -9/Exiles Parts ------- > --- POWER (1) -------- (None) > --- PROPULSION (3) --- Titanium Leg > --- UTILITY (2) ------ Large Storage Unit > --- WEAPON (3) ------- Improved Assault Rifle > --- INVENTORY (15) --- Improved Ion Engine High-capacity Matter Pod (200) Terrain Scan Processor Seismic Detector Improved Targeting Computer Improved Targeting Computer Improved Targeting Computer Medium Armor Plating Hardened Light Armor Plating Hacking Suite Mini Grenade Launcher Flail Peak State ------------ > --- POWER ------------ Improved Ion Engine > --- PROPULSION ------- Titanium Leg Titanium Leg Titanium Leg > --- UTILITY ---------- Large Storage Unit Hardened Light Armor Plating > --- WEAPON ----------- Heavy Assault Rifle Improved Assault Rifle Improved Assault Rifle > --- INVENTORY -------- Light Nuclear Core Titanium Leg Large Matter Pod Improved Signal Interpreter Terrain Scan Processor Seismic Detector Improved Targeting Computer Improved Targeting Computer Improved Targeting Computer Light Armor Plating Hardened Light Armor Plating Hacking Suite Mini Grenade Launcher Mini Grenade Launcher Heavy Hammer [Rating: 25] Favorites ----------- Power Improved Ion Engine Engine Improved Ion Engine Propulsion Titanium Leg Treads Light Treads Leg Titanium Leg Wheel Armored Wheel Utility Large Storage Unit Device Seismic Detector Storage Large Storage Unit Processor Improved Signal Interpreter Protection Propulsion Shielding Weapon Heavy Assault Rifle Energy Gun EM Pulse Gun Energy Cannon Advanced Beam Cannon Ballistic Gun Heavy Assault Rifle Launcher Rocket Launcher Special Weapon Mining Laser Impact Weapon Heavy Hammer Build | -11 -10 -9 -9 -9 ------- Run | Yrd Mat Mat Min Exi Slots Evolved 2 | . . 2 . . Power . | . . . . . Propulsion 1 | . . 1 . . Utility . | . . . . . Weapon 1 | . . 1 . . Parts Attached 49 | 8 12 20 8 1 Power 7 | 1 1 4 1 . Engine 7 | 1 1 4 1 . Core . | . . . . . Reactor . | . . . . . Propulsion 10 | 2 2 5 1 . Treads 2 | 2 . . . . Leg 4 | . . 3 1 . Wheel 4 | . 2 2 . . Hover . | . . . . . Flight . | . . . . . Utility 9 | 2 3 2 1 1 Device 2 | 1 1 . . . Storage 2 | 1 1 . . . Processor 1 | . . . 1 . Hackware . | . . . . . Protection 4 | . 1 2 . 1 Artifact . | . . . . . Weapon 23 | 3 6 9 5 . Energy Gun 3 | 3 . . . . Energy Cannon 1 | . . 1 . . Ballistic Gun 14 | . 4 8 2 . Ballistic Cannon . | . . . . . Launcher 2 | . . . 2 . Special Weapon 2 | . 1 . 1 . Impact Weapon 1 | . 1 . . . Slashing Weapon . | . . . . . Piercing Weapon . | . . . . . Special Melee Weapon . | . . . . . Unidentified Prototypes 2 | . . 2 . . Parts Lost 10 | . 1 1 1 7 Power 3 | . 1 1 . 1 Propulsion 3 | . . . 1 2 Utility 1 | . . . . 1 Weapon 3 | . . . . 3 Highest Loss Streak 7 | . 1 1 1 7 To Critical Strikes 2 | . . . . 2 Average Backups 13 | 4 11 14 14 14 Power . | . . . 1 1 Propulsion 1 | 3 3 2 . . Utility 7 | . 4 8 9 9 Weapon 3 | 1 2 3 3 3 Tool/Special . | . . . . . Unused Backups 30 | . 6 12 4 8 Power 2 | . . 1 1 . Propulsion 4 | . 3 1 . . Utility 19 | . 1 9 2 7 Weapon 5 | . 2 1 1 1 Tool/Special . | . . . . . Average Slot Usage (%) 99 | . 99 99 99 99 Engine 11 | . 14 10 11 11 Treads 6 | . 20 . . . Leg 18 | . . 10 32 32 Wheel 6 | . 7 22 . . Device 3 | . 7 4 2 . Storage 11 | . 14 11 11 11 Processor 3 | . . . 4 10 Protection 4 | . 5 6 4 . Energy Gun 1 | . 4 . . . Ballistic Gun 24 | . 18 29 27 24 Special Weapon 3 | . 2 . 1 7 Impact Weapon 1 | . 2 3 . . Peak Build Rating 25 | 7 11 25 25 24 Average Rating 17 | 5 8 19 23 23 On Entrance 13 | . 7 11 25 23 Avg Prop Armor Cover (%) 5 | . . 5 . . Naked Turns . | . . . . . Heaviest Build 41 | 12 30 41 41 41 Greatest Support 51 | 40 40 51 51 51 Greatest Overweight (x) 2 | . 2 1 1 2 Average Overweight (x) . | . . . . . Largest Inventory Capacity 15 | 8 15 15 15 15 Average Capacity 14 | 7 13 15 15 15 Most Carried 15 | 8 15 15 15 15 Average Carried 13 | 5 11 14 14 14 Final Capacity 15 | 8 15 15 15 15 Final Carried 15 | 7 15 15 15 12 Class Distribution -------------------- 44% | Gunner 38% | Mutant 16% | Tank Dominant Class ---------------- Mutant | -10/Materials Tank | -9/Materials Gunner | -9/Mines Gunner | -9/Exiles Resources | -11 -10 -9 -9 -9 ----------- Run | Yrd Mat Mat Min Exi Matter Collected 2149 | 290 244 984 631 . Remotely . | . . . . . Salvage Created 2377 | 161 677 1095 420 24 Parts 132 | 7 35 57 33 . Haulers Intercepted 6 | . 2 4 . . Recyclers Shooed 3 | . . 3 . . Parts Field Recycled . | . . . . . Retrieved Matter . | . . . . . Parts Self-Destructed . | . . . . . Prevented . | . . . . . Parts Restored . | . . . . . Kills | -11 -10 -9 -9 -9 ------- Run | Yrd Mat Mat Min Exi Combat Hostiles Destroyed 64 | . 17 22 20 5 Melee 5 | . 3 2 . . Guns 43 | . 12 19 10 2 AOE 13 | . . . 10 3 Classes Destroyed 12 | 2 7 2 . 1 Worker 3 | . 2 1 . . Builder 1 | . . 1 . . Tunneler 4 | 3 . . 1 . Hauler 6 | . 2 4 . . Recycler 3 | 1 . 2 . . Mechanic 1 | . 1 . . . Operator 2 | . 2 . . . Watcher 3 | . 1 2 . . Swarmer 28 | . 9 7 12 . Grunt 24 | . 8 8 8 . Sentry 7 | . . 7 . . Assembled 5 | . . . . 5 Best Kill Streak 5 | 2 4 4 4 5 Combat Bots Only 5 | . 4 4 4 5 Max Kills in Single Turn 3 | 1 1 2 3 1 Gunslinging . | . . . . . Exploded 3 | . . . 3 1 Melee 1 | . 1 1 . . Uniques/NPCs Destroyed . | . . . . . Combat | -11 -10 -9 -9 -9 -------- Run | Yrd Mat Mat Min Exi Hostile Shots Fired 302 | . 96 100 42 64 Missed 85 | . 30 18 17 20 Hits 217 | . 66 82 25 44 Melee 8 | . . . . 8 Projectile 209 | . 66 82 25 36 Critical Strikes 17 | . 1 4 1 11 Damage Taken 3189 | . 635 1033 367 1154 Core 500 | . 91 120 43 246 Absorbed by Shields . | . . . . . Redirected to Shielding 43 | . 33 10 . . Core Remaining (%) 81 | 100 63 . . . Volleys Fired 183 | 6 73 61 29 14 Largest 3 | 2 2 3 3 3 Hottest 120 | 80 120 75 100 69 Shots Fired 409 | 11 131 172 67 28 Gun 393 | 11 124 172 61 25 Cannon . | . . . . . Launcher 7 | . . . 4 3 Special 9 | . 7 . 2 . Kinetic 350 | . 92 172 61 25 Thermal 30 | 1 27 . 2 . Explosive 7 | . . . 4 3 Electromagnetic 22 | 10 12 . . . Robot Hit Streak 13 | 5 13 9 11 7 Robot Miss Streak 8 | 2 3 8 2 4 Penetration Max . | . . . . . Secondary Targets 4 | . 1 1 . 2 Max Gunslinging Chain 1 | . 1 1 . 1 Shots Hit Robots 267 | 7 101 106 38 15 Core Hits 117 | 4 34 46 26 7 Critical Kills 1 | . . 1 . . Critical Parts Destroyed 5 | . 1 4 . . Critical Strikes 6 | . 1 5 . . Destroy 3 | . . 3 . . Smash 3 | . 1 2 . . Melee Attacks 47 | . 30 17 . . Impact 47 | . 30 17 . . Slashing . | . . . . . Piercing . | . . . . . Sneak Attacks 7 | . 5 2 . . Combat Hostiles . | . . . . . Follow-up Attacks . | . . . . . Damage Inflicted 5467 | 91 1671 1917 1242 546 Guns 2944 | 91 714 1332 578 229 Cannons . | . . . . . Explosions 935 | . . . 618 317 Melee 1518 | . 933 585 . . Ramming 46 | . . . 46 . Kinetic 2654 | . 515 1332 578 229 Thermal 169 | 10 159 . . . Explosive 935 | . . . 618 317 Electromagnetic 145 | 81 64 . . . Impact 1518 | . 933 585 . . Slashing . | . . . . . Piercing . | . . . . . Highest Corruption 2 | . . 2 2 2 Average Corruption 2 | . . 2 2 2 Corruption Purged . | . . . . . Corruption Blocked . | . . . . . Effects 34 | . . 7 10 17 Message Errors 7 | . . 1 3 3 Matter Fused 8 | . . 1 2 5 Heat Flow Errors 1 | . . . . 1 Energy Discharges 9 | . . 2 1 6 Parts Rejected 1 | . . . 1 . Parts Fused 1 | . . . 1 . Data Loss (minor) 6 | . . 3 1 2 Misfires 1 | . . . 1 . Overload Shots . | . . . . . Overflow Damage 556 | . 223 237 52 44 Projectiles 20 | . . 20 . . Explosions 96 | . . . 52 44 Melee 440 | . 223 217 . . Knockbacks 11 | . 8 3 . . Impact 10 | . 8 2 . . Kinetic . | . . . . . Secondary 1 | . . 1 . . Self-Inflicted Damage 85 | . . . 61 24 Shots 4 | . . . 2 2 Rammed 1 | . 1 . . . Targets Rammed 4 | . 1 . 3 . Kicked 3 | . . . 3 . Crushed . | . . . . . Highest Temperature 226 | 36 162 175 72 226 Average Temperature 34 | 15 37 33 22 57 Received Heat Transfer 804 | . 186 414 144 60 Siege Activations . | . . . . . Martial Activations . | . . . . . Shielding Activations . | . . . . . Robots Disrupted . | . . . . . Combat Hostiles . | . . . . . Robots Corrupted 7 | . 4 3 . . Combat Hostiles 3 | . 2 1 . . Parts Fried 7 | . 3 4 . . Impact Corruptions 20 | . 12 8 . . Robots Melted . | . . . . . Combat Hostiles . | . . . . . Parts Melted . | . . . . . Heat Transferred 375 | 25 350 . . . Parts Sabotaged . | . . . . . Parts Stolen . | . . . . . Parts Stripped . | . . . . . Power Chain Reactions . | . . . . . Alert | -11 -10 -9 -9 -9 ------- Run | Yrd Mat Mat Min Exi Maximum Alert Level 1 | . . 1 1 . Low Security (%) 70 | 100 100 81 14 . Level 1 29 | . . 18 85 . Level 2 . | . . . . . Level 3 . | . . . . . Level 4 . | . . . . . Level 5 . | . . . . . High Security . | . . . . . Max Security . | . . . . . Peak Influence 354 | 10 131 289 354 . Initial 105 | . . 51 105 . Average 118 | 1 27 135 243 . Influence Increases 1777 | 20 516 676 565 . Destroy 0b10 Robot/C 1200 | . 340 440 420 . Destroy 0b10 Robot/NC 115 | 20 40 50 5 . Destroy Leader 278 | . 66 142 70 . Allied During Kill 1 | . . . 1 . Successful Hack 26 | . 18 8 . . Disable Machine 60 | . . 30 30 . Destroy Structure 52 | . 7 6 39 . Lose Combat Pursuer 45 | . 45 . . . Influence Decreases 1777 | 20 393 528 640 196 Entered New Map 434 | . . 72 166 196 Time Decay 1228 | 20 298 446 464 . Lost Part 27 | . 7 10 10 . Purge Threat 88 | . 88 . . . Squads Dispatched 8 | . 4 3 1 . Investigation 2 | . 2 . . . Extermination . | . . . . . Reinforcement 6 | . 2 3 1 . Assault . | . . . . . Garrison . | . . . . . Intercept . | . . . . . Searches Triggered . | . . . . . Construction Impeded 1 | . . . 1 . Haulers Reinforced . | . . . . . Active Scanning Responses . | . . . . . Cargo Convoy Interrupts . | . . . . . Stealth | -11 -10 -9 -9 -9 --------- Run | Yrd Mat Mat Min Exi Distress Signals 5 | . 3 2 . . Communications Jammed . | . . . . . Distress Signals . | . . . . . Times Spotted 96 | . 30 36 22 8 Peak Tracking Total 9 | . 3 5 4 9 Tactical Retreats 3 | . 3 . . . Traps | -11 -10 -9 -9 -9 ------- Run | Yrd Mat Mat Min Exi Traps Triggered 3 | . 2 1 . . Indirectly . | . . . . . Trap Hack Attempts . | . . . . . Triggered . | . . . . . Disarmed . | . . . . . Reprogrammed . | . . . . . Reused . | . . . . . Traps Extracted . | . . . . . Installed . | . . . . . Triggered . | . . . . . Machines | -11 -10 -9 -9 -9 ---------- Run | Yrd Mat Mat Min Exi Machines Disabled 7 | . . 2 2 3 Max in Single Turn 1 | . . 1 1 1 Machines Repaired . | . . . . . Machines Dismantled . | . . . . . Machines Sabotaged . | . . . . . Overloaded Fab Kills . | . . . . . Hacking | -11 -10 -9 -9 -9 --------- Run | Yrd Mat Mat Min Exi Machines Accessed 12 | . 6 5 . 1 Terminals 10 | . 6 4 . . Fabricators . | . . . . . Repair Stations . | . . . . . Recycling Units . | . . . . . Scanalyzers 1 | . . 1 . . Garrison Access . | . . . . . Total Hacks 38 | . 14 18 . 6 Successful 20 | . 6 8 . 6 Failed 18 | . 8 10 . . Catastrophic 3 | . 1 2 . . Database Lockouts . | . . . . . Manual 18 | . 3 15 . . Terminals 31 | . 14 17 . . Fabricators . | . . . . . Repair Stations . | . . . . . Recycling Units . | . . . . . Scanalyzers 1 | . . 1 . . Garrison Access . | . . . . . Terminal Hacks 13 | . 5 2 . 6 Record 6 | . . . . 6 Robot Analysis 1 | . 1 . . . Prototype ID Bank 2 | . 2 . . . Alert Level 1 | . . 1 . . Unreport Threat 1 | . 1 . . . Locate Traps 1 | . . 1 . . Recall Reinforcements 1 | . 1 . . . Fabricator Hacks . | . . . . . Repair Station Hacks . | . . . . . Recycling Unit Hacks . | . . . . . Scanalyzer 1 | . . 1 . . Retrieve Study 1 | . . 1 . . Garrison Access Hacks . | . . . . . Unauthorized Hacks 6 | . 1 5 . . Terminals 6 | . 1 5 . . Botnet 2 | . 1 1 . . Skim 4 | . . 4 . . Fabricators . | . . . . . Repair Stations . | . . . . . Recycling Units . | . . . . . Scanalyzers . | . . . . . Garrison Access . | . . . . . Data Cores Recovered . | . . . . . Used . | . . . . . Hacking Detections 9 | . 5 4 . . Full Trace Events 1 | . 1 . . . Feedback Events . | . . . . . Feedback Blocked . | . . . . . Robot Schematics Acquired . | . . . . . Robots Built . | . . . . . Authchips . | . . . . . Time . | . . . . . Total Robot Build Rating . | . . . . . Part Schematics Acquired . | . . . . . Parts Built . | . . . . . Authchips . | . . . . . Time . | . . . . . Total Part Build Rating . | . . . . . Part Studies Acquired 1 | . . 1 . . Parts Repaired . | . . . . . Time . | . . . . . Parts Recycled . | . . . . . Recycled Matter . | . . . . . Retrieved Matter . | . . . . . Retrieved Components . | . . . . . Parts Scanalyzed . | . . . . . Part Schematics Acquired . | . . . . . Parts Damaged . | . . . . . Bothacking | -11 -10 -9 -9 -9 ------------ Run | Yrd Mat Mat Min Exi Used RIF Installer . | . . . . . Robots Hacked . | . . . . . Non-combat . | . . . . . Combat . | . . . . . Robot Hacks Applied . | . . . . . Relay Couplers Released . | . . . . . Fabnet Peak Effective % . | . . . . . Robots Rewired . | . . . . . Allies Hacked . | . . . . . Hacks Repelled . | . . . . . Allies | -11 -10 -9 -9 -9 -------- Run | Yrd Mat Mat Min Exi Total Allies 1 | . . . 1 . Largest Group 1 | . . . 1 . Highest-Rated Group 31 | . . . 31 . Highest-Rated Ally 31 | . . . 31 . Total Orders . | . . . . . Ally Attacks 1 | . . . 1 . Total Damage 22 | . . . 22 . Kills 1 | . . . 1 . Allies Corrupted . | . . . . . Allies Melted . | . . . . . Intel | -11 -10 -9 -9 -9 ------- Run | Yrd Mat Mat Min Exi Active Infowar (turns) 1696 | 40 940 430 286 . Seismic 1696 | 40 940 430 286 . Robot Analysis Total 1 | . 1 . . . Derelict Logs Recovered 3 | . . . 3 . Drone Launches . | . . . . . Drone Recoveries . | . . . . . Exploration | -11 -10 -9 -9 -9 ------------- Run | Yrd Mat Mat Min Exi Turns Passed 5572 | 140 1641 1119 1164 1508 Spaces Moved 3556 | 65 854 738 783 1116 Core 1 | 1 . . . . Treads 587 | 64 523 . . . Legs 2043 | . . 144 783 1116 Wheels 925 | . 331 594 . . Hover . | . . . . . Flight . | . . . . . Fastest Speed 50 | 50 105 80 130 130 Average Speed 125 | 158 138 94 130 131 Slowest Speed 270 | 160 160 130 200 270 Overloaded Moves . | . . . . . Propulsion Burnouts . | . . . . . Robots Hopped . | . . . . . Potential Cave-ins . | . . . . . Cave-ins Triggered . | . . . . . Exploration Rate (%) 71 | 4 98 64 99 91 Regions Visited 4 Branch Regions 2 Pre-discovered Areas 2 | . . . 1 1 Known Exits Taken 1 | . . . 1 . Unknown Exits Taken 3 | 1 1 1 . . Scrap Searched 3 | . . . 3 . Spaces Dug 17 | . 7 2 2 6 Terrain Destroyed 68 | . 7 2 42 17 Melee 4 | . 2 2 . . Projectile 7 | . 5 . 2 . AOE 57 | . . . 40 17 Terrain Rammed . | . . . . . Walls Destroyed . | . . . . . Machines Disabled . | . . . . . Actions | -11 -10 -9 -9 -9 --------- Run | Yrd Mat Mat Min Exi Total 4235 | 87 1133 1013 866 1136 Wait 233 | . 111 98 24 . Move 3552 | 64 853 737 782 1116 Hop . | . . . . . Pick Up 61 | 8 19 28 6 . Fast Attach 19 | 6 3 9 1 . Attach 14 | 1 2 8 1 2 Detach 6 | . 3 3 . . Swap 51 | 2 19 15 13 2 Drop 64 | . 19 37 7 1 Fire 183 | 6 73 61 29 14 Melee 47 | . 30 17 . . Ram . | . . . . . Kick 3 | . . . 3 . Crush 1 | . 1 . . . Escape Stasis . | . . . . . Rewire 1 | . . . . 1 Trap . | . . . . . Miscellaneous . | . . . . . Route ------- -11/Scrapyard -10/Materials (discovered 6 exits: *Mat x3 / [*Min x2] / [*Sub]) -9/Materials (discovered 3 exits: *Mat x2 / [*Min]) -9/Mines (discovered 3 exits: *Mat x2 / *Exi) -9/Exiles (discovered 2 exits: *Min x2) History --------- Turn | Location | Event 17 | -11/Scrapyard | Discovered new exit (range 15) 141 | -11/Scrapyard | Entered Materials 207 | -10/Materials | Discovered new exit (range 14) 313 | -10/Materials | Build established: Mutant 665 | -10/Materials | Discovered new exit (range 9) 739 | -10/Materials | Discovered new exit (range 8) 945 | -10/Materials | Discovered new exit (range 9) 999 | -10/Materials | Discovered new exit (range 9) 1458 | -10/Materials | Discovered new exit (range 8) 1782 | -10/Materials | Entered another Materials area 1782 | -9/Materials | Evolved 2 slots: Propulsion x1, Weapon x1 2013 | -9/Materials | Discovered new exit (range 8) 2396 | -9/Materials | Discovered new exit (range 8) 2866 | -9/Materials | Discovered new exit (range 14) 2901 | -9/Materials | Entered Mines 2925 | -9/Mines | Met a Derelict bent on vengeance 2933 | -9/Mines | Learned location of 1 exit from Materials 3104 | -9/Mines | Learned Materials garrison access intel 3299 | -9/Mines | Learned location of Storage (-7) 3309 | -9/Mines | Build established: Tank 3443 | -9/Mines | Found a hidden stash of uninstalled traps 3566 | -9/Mines | Discovered new exit (range 12) 3590 | -9/Mines | Received a Mining Laser from a helpful Derelict 3620 | -9/Mines | Identified exit to Materials 3658 | -9/Mines | Discovered exit to Materials (range 5) 3659 | -9/Mines | Build established: Gunner 3800 | -9/Mines | Joined a pair of Derelicts in attacking an 0b10 outpost 4059 | -9/Mines | Deemed a non-threat by the Exiles lab entrance 4060 | -9/Mines | Discovered new exit (range 5) 4064 | -9/Mines | Identified exit to Exiles 4065 | -9/Mines | Entered Exiles 4082 | -9/Exiles | Discovered new exit (range 15) 4099 | -9/Exiles | Identified exit to Mines 4124 | -9/Exiles | Met 8R-AWN 4146 | -9/Exiles | Met EX-HEX 4212 | -9/Exiles | Met EX-DEC 4239 | -9/Exiles | Visited The Gauntlet 4453 | -9/Exiles | Met EX-BIN 4553 | -9/Exiles | Learned location of Zion (-6) 4740 | -9/Exiles | Discovered exit to Mines (range 12) 5498 | -9/Exiles | Attacked by the Exiles 5543 | -9/Exiles | Core integrity fell below 50% 5572 | -9/Exiles | Core integrity fell below 20% 5573 | -9/Exiles | Destroyed by DAS Turret with DAS Cannon Last Messages --------------- 05551_ Penetrated by HV Slug. 05551_ HV Slug penetrates Machine. 05553_ Penetrated by HV Slug. 05553_ HV Slug penetrates Machine. 05555_ Penetrated by HV Slug. 05557_ HV Slug penetrates Machine. 05557_ Penetrated by HV Slug. 05557_ Titanium Leg destroyed. 05560_ Penetrated by HV Slug. 05560_ Rocket Launcher destroyed. 05562_ Penetrated by HV Slug. 05563_ Knocked back. 05564_ Penetrated by HV Slug. 05564_ HV Slug penetrates Machine. 05564_ Penetrated by HV Slug. 05565_ Hrd. Light Armor Plating destroyed. 05566_ HV Slug penetrates Machine. 05569_ Penetrated by HV Slug. 05571_ Imp. Ion Engine destroyed. 05571_ HV Slug penetrates Machine. Map ----- +----------------------------------------------------+ | ?????????????????????????#""X" #?????????? | | ?????????????????????????#" #?????????? | | ?????????????????????????#" ## #?????????? | | ?????????????????????????#""""""?# #?########? | | ?????????????????????????##"###??# #?#"""""""? | | ?????????????????????????? ??????# #?#"""""""# | | ?????????????????????????????????# #?#"""""""# | | ????????????????????????????????## ###"" """"# | | #######?????????????????????????# """"# | | #!!! "#?????????????????????????# """# | | # "#????????????????????????##" | """# | | # "#????????????????????????#"" """# | | # ""#??????????########???????" """# | | " ""#??????????# """#???????# """# | | " ""#??????????#"" """#???????## """" | | " #????????????#"" #????????# """# | | #????????????#"" #????????#" %% "X" """" | | ##???????????#"" "#???????## "" # | | "#???????????# ""#???????#" """"""""# | | ###?????????#"" ""#???????## ######## | | ##????????### ###?????###" ##??????? | | #"" ######???### ###?#####; " %# #??????? | | ##" """#####X# #"###" " ##??????? | | ?#" """""" " " #???##### | | ?#"# " " g#####"""" | | ?#### @ % " "" | | ????### % % % "" | | ??????### % % % " | | ????????## | | ?????????## | | ??????????##" | | ???????????#""" """ | | ??????????##" ##### | | ??????????#"" ""##????# #""" | | ?????????##""" """##??????#####""" | | ?????????#""" """##???????????#"""" | | ?????????#""" ""#???????????##"" | | ?????????#"" ########??####"""" | | ?????????#""" ## ####""" | | ?????????#"" """" | | ?????????##"" | | ??????????#"""" | | ??????????## " | | ???????????#" " "" " | | ???????????#"""" ""## ##""" " " "" | | ???????????#"" ""#### ######""" """ | | ???????????#" """"##??# #????###""""# | | ???????????#""" """#???# #??????###### | | ???????????## ""##??#! "??????????? | | ????????????#"" """##???#" !#????????? | +----------------------------------------------------+ Best States ------------- Heat Dissipation 28 Energy Generation 12 Energy Capacity 265 Matter Stores 300 Matter Capacity 300 Sight Range 16 Terrain Scan Density 10 Armor Coverage 150 Propulsion Shielding 33 Evasion (%) 55 Recoil Reduction 2 Item Schematics ----------------- None Robot Schematics ------------------ None Fabricated ------------ Nothing Repaired ---------- Nothing Studied --------- Arm. Wheel | -9/Materials | Hacked Alien Tech Used ----------------- None Achievements -------------- None Challenges ------------ None Game ------ Seed NeutronFortressMapper Manual? 0 Play Time 00:47:39 Cumulative 58.2 hours Start 2025.11.05 @ 13:50:29 End 2025.11.05 @ 14:43:31 Sessions 2 Manual Loads 0 Difficulty Rogue Special Mode None Game No. 47 Rogue 47 Adventurer 0 Explorer 0 Win Type - Total 1 Types 1/0/0/0/0/0/0/0/0/0 Lore% 36 Gallery% 40 Achievement% 28 Wizard Run 0 Options --------- Layout 0 ASCII 0 Keyboard 1 Movement Vi Keybinds 0 Fullscreen 2 Font 18/SmallcapsGlow Map View 76x50 Zoom Use 0% Tactical HUD 1 Map Filters NONE Filters NONE Steam 0 RUN: 6753b194-d714-4d4d-86e2-29612c20fcce